[Event "Titled Tuesday Blitz December 7 2021"]
[White "Navalgund, Niranjan"]
[Black "Hakemi, Arman"]
[WhiteFideId "5030854"]
[BlackFideId "22520805"]
[WhiteElo "2290"]
[BlackElo "2208"]
[Result "1-0"]
[Round "06"]
[TimeControl "180+1"]
[Date "2021.12.07"]
[WhiteClock "0:01:04"]
[BlackClock "0:01:23"]

1. e4 {[%clk 0:02:46]}  c5 {[%clk 0:02:59]} 2. d4 {[%clk 0:02:46]}  cxd4 {[%clk 0:03:00]} 3. c3 {[%clk 0:02:46]}  d3 {[%clk 0:02:59]} 4. Nf3 {[%clk 0:02:46]}  Nc6 {[%clk 0:02:59]} 5. Bxd3 {[%clk 0:02:47]}  g6 {[%clk 0:02:59]} 6. O-O {[%clk 0:02:47]}  Bg7 {[%clk 0:03:00]} 7. c4 {[%clk 0:02:46]}  d6 {[%clk 0:03:00]} 8. Nc3 {[%clk 0:02:45]}  Nf6 {[%clk 0:03:00]} 9. Be3 {[%clk 0:02:44]}  O-O {[%clk 0:02:59]} 10. Rc1 {[%clk 0:02:44]}  Ng4 {[%clk 0:02:59]} 11. Bf4 {[%clk 0:02:43]}  Nge5 {[%clk 0:02:56]} 12. Be2 {[%clk 0:02:43]}  h6 {[%clk 0:02:52]} 13. b3 {[%clk 0:02:40]}  Nxf3+ {[%clk 0:02:47]} 14. Bxf3 {[%clk 0:02:39]}  Nd4 {[%clk 0:02:47]} 15. Nd5 {[%clk 0:02:38]}  Nxf3+ {[%clk 0:02:46]} 16. Qxf3 {[%clk 0:02:38]}  Be6 {[%clk 0:02:46]} 17. Rfd1 {[%clk 0:02:34]}  Bxd5 {[%clk 0:02:37]} 18. Rxd5 {[%clk 0:02:19]}  Qb6 {[%clk 0:02:34]} 19. Qh3 {[%clk 0:02:14]}  Rac8 {[%clk 0:02:30]} 20. Bxh6 {[%clk 0:02:08]}  Qa6 {[%clk 0:02:25]} 21. a4 {[%clk 0:01:38]}  Qb6 {[%clk 0:02:14]} 22. Bxg7 {[%clk 0:01:36]}  Kxg7 {[%clk 0:02:14]} 23. Qc3+ {[%clk 0:01:37]}  f6 {[%clk 0:02:13]} 24. a5 {[%clk 0:01:37]}  Qc6 {[%clk 0:02:11]} 25. f3 {[%clk 0:01:35]}  Rc7 {[%clk 0:02:08]} 26. Qd4 {[%clk 0:01:34]}  b6 {[%clk 0:02:01]} 27. axb6 {[%clk 0:01:31]}  axb6 {[%clk 0:02:01]} 28. Rb5 {[%clk 0:01:31]}  Qxb5 {[%clk 0:02:01]} 29. cxb5 {[%clk 0:01:29]}  Rxc1+ {[%clk 0:02:02]} 30. Kf2 {[%clk 0:01:30]}  Rc2+ {[%clk 0:01:56]} 31. Kg3 {[%clk 0:01:30]}  Rc5 {[%clk 0:01:52]} 32. b4 {[%clk 0:01:28]}  Rxb5 {[%clk 0:01:52]} 33. Qc4 {[%clk 0:01:28]}  Rg5+ {[%clk 0:01:52]} 34. Kf2 {[%clk 0:01:28]}  Ra8 {[%clk 0:01:49]} 35. h4 {[%clk 0:01:26]}  Re5 {[%clk 0:01:45]} 36. g4 {[%clk 0:01:18]}  g5 {[%clk 0:01:42]} 37. h5 {[%clk 0:01:17]}  b5 {[%clk 0:01:39]} 38. Qb3 {[%clk 0:01:16]}  d5 {[%clk 0:01:38]} 39. exd5 {[%clk 0:01:15]}  Rd8 {[%clk 0:01:39]} 40. Qd3 {[%clk 0:01:15]}  Rexd5 {[%clk 0:01:36]} 41. Qg6+ {[%clk 0:01:15]}  Kf8 {[%clk 0:01:37]} 42. h6 {[%clk 0:01:15]}  Rd2+ {[%clk 0:01:37]} 43. Kg3 {[%clk 0:01:16]}  f5 {[%clk 0:01:27]} 44. h7 {[%clk 0:01:09]}  f4+ {[%clk 0:01:26]} 45. Kh3 {[%clk 0:01:09]}  e6 {[%clk 0:01:23]} 46. Qf6+ {[%clk 0:01:04]}  Ke8 {[%clk 0:01:22]} 47. Qxe6+ {[%clk 0:01:04]}  Kf8 {[%clk 0:01:23]} 48. h8=Q# {[%clk 0:01:04]} 1-0


[Site "https://www.chess.com"]

[Event "Titled Tuesday Blitz December 7 2021"]
[White "Nazaretyan, Tigran"]
[Black "Manukian, Artak"]
[WhiteFideId "24162345"]
[BlackFideId "13301373"]
[WhiteElo "2192"]
[BlackElo "2403"]
[Result "1-0"]
[Round "06"]
[TimeControl "180+1"]
[Date "2021.12.07"]
[WhiteClock "0:00:49"]
[BlackClock "0:00:33"]

1. d4 {[%clk 0:03:00]}  Nf6 {[%clk 0:02:59]} 2. c4 {[%clk 0:03:00]}  g6 {[%clk 0:02:59]} 3. Nc3 {[%clk 0:03:00]}  Bg7 {[%clk 0:02:59]} 4. e4 {[%clk 0:03:00]}  d6 {[%clk 0:03:00]} 5. Nf3 {[%clk 0:03:00]}  O-O {[%clk 0:03:00]} 6. Be2 {[%clk 0:03:00]}  e5 {[%clk 0:03:00]} 7. O-O {[%clk 0:03:00]}  Nc6 {[%clk 0:03:00]} 8. d5 {[%clk 0:03:00]}  Ne7 {[%clk 0:03:00]} 9. b4 {[%clk 0:03:00]}  a5 {[%clk 0:03:00]} 10. bxa5 {[%clk 0:02:59]}  Rxa5 {[%clk 0:02:57]} 11. a4 {[%clk 0:02:59]}  Nd7 {[%clk 0:02:56]} 12. Ba3 {[%clk 0:02:57]}  b6 {[%clk 0:02:41]} 13. Bb4 {[%clk 0:02:57]}  Ra6 {[%clk 0:02:39]} 14. a5 {[%clk 0:02:39]}  Bh6 {[%clk 0:02:38]} 15. axb6 {[%clk 0:02:35]}  Nxb6 {[%clk 0:02:35]} 16. c5 {[%clk 0:02:33]}  Rxa1 {[%clk 0:02:23]} 17. Qxa1 {[%clk 0:02:31]}  dxc5 {[%clk 0:02:23]} 18. Bxc5 {[%clk 0:02:30]}  Re8 {[%clk 0:02:11]} 19. Nxe5 {[%clk 0:02:13]}  Bg7 {[%clk 0:02:06]} 20. f4 {[%clk 0:02:03]}  Nexd5 {[%clk 0:01:48]} 21. exd5 {[%clk 0:01:59]}  Nxd5 {[%clk 0:01:49]} 22. Nxd5 {[%clk 0:01:38]}  Qxd5 {[%clk 0:01:49]} 23. Qd4 {[%clk 0:01:37]}  Bb7 {[%clk 0:01:29]} 24. Qxd5 {[%clk 0:01:35]}  Bxd5 {[%clk 0:01:30]} 25. Rd1 {[%clk 0:01:31]}  Bxe5 {[%clk 0:01:23]} 26. fxe5 {[%clk 0:01:20]}  Rxe5 {[%clk 0:01:24]} 27. Bf1 {[%clk 0:01:11]}  h5 {[%clk 0:01:01]} 28. Bd4 {[%clk 0:01:09]}  Rf5 {[%clk 0:01:00]} 29. Rb1 {[%clk 0:00:58]}  f6 {[%clk 0:00:43]} 30. Bd3 {[%clk 0:00:58]}  Rg5 {[%clk 0:00:42]} 31. g3 {[%clk 0:00:56]}  Kf7 {[%clk 0:00:38]} 32. Rf1 {[%clk 0:00:51]}  f5 {[%clk 0:00:37]} 33. Be2 {[%clk 0:00:49]}  h4 {[%clk 0:00:33]} 34. Be3 {[%clk 0:00:49]} 1-0


[Site "https://www.chess.com"]

[Event "Titled Tuesday Blitz December 7 2021"]
[White "Nozdrachev, Leonid"]
[Black "Kalajzic, Ivan"]
[WhiteFideId "24113433"]
[BlackFideId "14506378"]
[WhiteElo "2124"]
[BlackElo "2163"]
[Result "1-0"]
[Round "06"]
[TimeControl "180+1"]
[Date "2021.12.07"]
[WhiteClock "0:00:21"]
[BlackClock "0:00:40"]

1. e4 {[%clk 0:03:00]}  Nc6 {[%clk 0:02:59]} 2. Nf3 {[%clk 0:02:56]}  d6 {[%clk 0:02:59]} 3. d4 {[%clk 0:02:49]}  g6 {[%clk 0:02:59]} 4. d5 {[%clk 0:02:46]}  Nb8 {[%clk 0:02:59]} 5. h4 {[%clk 0:02:35]}  Bg4 {[%clk 0:02:54]} 6. Qd4 {[%clk 0:02:24]}  Nf6 {[%clk 0:02:51]} 7. e5 {[%clk 0:02:21]}  c5 {[%clk 0:02:32]} 8. Qa4+ {[%clk 0:01:35]}  Bd7 {[%clk 0:02:28]} 9. Qb3 {[%clk 0:01:35]}  dxe5 {[%clk 0:02:21]} 10. Qxb7 {[%clk 0:01:34]}  e4 {[%clk 0:02:11]} 11. Ne5 {[%clk 0:01:27]}  Bg7 {[%clk 0:02:00]} 12. Qxa8 {[%clk 0:01:23]}  O-O {[%clk 0:02:00]} 13. Nc3 {[%clk 0:01:12]}  Qa5 {[%clk 0:01:51]} 14. Bd2 {[%clk 0:01:02]}  Nc6 {[%clk 0:01:46]} 15. Nxc6 {[%clk 0:01:02]}  Qb6 {[%clk 0:01:36]} 16. Qxa7 {[%clk 0:00:56]}  Qxa7 {[%clk 0:01:26]} 17. Nxa7 {[%clk 0:00:56]}  Ng4 {[%clk 0:01:26]} 18. Nc6 {[%clk 0:00:54]}  e6 {[%clk 0:01:22]} 19. Bb5 {[%clk 0:00:51]}  Re8 {[%clk 0:01:14]} 20. a4 {[%clk 0:00:32]}  exd5 {[%clk 0:01:11]} 21. Nxd5 {[%clk 0:00:31]}  Kf8 {[%clk 0:00:59]} 22. Bc3 {[%clk 0:00:30]}  e3 {[%clk 0:00:55]} 23. Bxg7+ {[%clk 0:00:29]}  Kxg7 {[%clk 0:00:55]} 24. Nxe3 {[%clk 0:00:30]}  Re6 {[%clk 0:00:46]} 25. Nd8 {[%clk 0:00:22]}  Rd6 {[%clk 0:00:39]} 26. Bxd7 {[%clk 0:00:20]}  Nxe3 {[%clk 0:00:38]} 27. fxe3 {[%clk 0:00:20]}  Rxd7 {[%clk 0:00:38]} 28. Nc6 {[%clk 0:00:20]}  Rd6 {[%clk 0:00:36]} 29. Ne5 {[%clk 0:00:20]}  Re6 {[%clk 0:00:36]} 30. Nc4 {[%clk 0:00:20]}  f5 {[%clk 0:00:36]} 31. a5 {[%clk 0:00:20]}  Kh6 {[%clk 0:00:36]} 32. a6 {[%clk 0:00:20]}  Re8 {[%clk 0:00:36]} 33. a7 {[%clk 0:00:20]}  Ra8 {[%clk 0:00:37]} 34. Nb6 {[%clk 0:00:20]}  Kh5 {[%clk 0:00:38]} 35. Nxa8 {[%clk 0:00:19]}  h6 {[%clk 0:00:38]} 36. Nb6 {[%clk 0:00:19]}  g5 {[%clk 0:00:39]} 37. hxg5+ {[%clk 0:00:19]}  Kg4 {[%clk 0:00:39]} 38. a8=Q {[%clk 0:00:19]}  f4 {[%clk 0:00:40]} 39. Qf3+ {[%clk 0:00:19]}  Kf5 {[%clk 0:00:40]} 40. Qxf4+ {[%clk 0:00:20]}  Kg6 {[%clk 0:00:40]} 41. Rxh6+ {[%clk 0:00:20]}  Kg7 {[%clk 0:00:40]} 42. Qf6+ {[%clk 0:00:21]} 1-0


[Site "https://www.chess.com"]

[Event "Titled Tuesday Blitz December 7 2021"]
[White "Perez Gormaz, Matias"]
[Black "Schuster, Karsten"]
[WhiteFideId "3406342"]
[BlackFideId "4611071"]
[WhiteElo "2352"]
[BlackElo "2367"]
[Result "1-0"]
[Round "06"]
[TimeControl "180+1"]
[Date "2021.12.07"]
[WhiteClock "0:00:27"]
[BlackClock "0:01:09"]

1. e4 {[%clk 0:03:00]}  c6 {[%clk 0:03:00]} 2. d4 {[%clk 0:03:00]}  d5 {[%clk 0:03:00]} 3. e5 {[%clk 0:03:01]}  Bf5 {[%clk 0:03:00]} 4. h4 {[%clk 0:03:02]}  h5 {[%clk 0:02:59]} 5. Bd3 {[%clk 0:03:02]}  Bxd3 {[%clk 0:02:59]} 6. Qxd3 {[%clk 0:03:03]}  e6 {[%clk 0:02:59]} 7. Nf3 {[%clk 0:03:01]}  Be7 {[%clk 0:02:54]} 8. Nbd2 {[%clk 0:02:48]}  Nh6 {[%clk 0:02:53]} 9. c4 {[%clk 0:02:48]}  Nf5 {[%clk 0:02:52]} 10. g3 {[%clk 0:02:47]}  Nd7 {[%clk 0:02:48]} 11. O-O {[%clk 0:02:42]}  Nb6 {[%clk 0:02:44]} 12. c5 {[%clk 0:02:41]}  Nd7 {[%clk 0:02:45]} 13. b4 {[%clk 0:02:41]}  a6 {[%clk 0:02:44]} 14. a4 {[%clk 0:02:41]}  O-O {[%clk 0:02:43]} 15. Nb3 {[%clk 0:02:40]}  b5 {[%clk 0:02:39]} 16. Bd2 {[%clk 0:02:27]}  f6 {[%clk 0:02:24]} 17. exf6 {[%clk 0:02:21]}  Nxf6 {[%clk 0:02:22]} 18. Na5 {[%clk 0:02:18]}  Qc7 {[%clk 0:02:21]} 19. Ne5 {[%clk 0:02:11]}  Ne4 {[%clk 0:02:16]} 20. Naxc6 {[%clk 0:02:03]}  Bf6 {[%clk 0:02:16]} 21. Bf4 {[%clk 0:01:55]}  Qb7 {[%clk 0:02:08]} 22. Na5 {[%clk 0:01:50]}  Qe7 {[%clk 0:02:00]} 23. axb5 {[%clk 0:01:49]}  axb5 {[%clk 0:01:59]} 24. Ng6 {[%clk 0:01:42]}  Qf7 {[%clk 0:01:59]} 25. Nxf8 {[%clk 0:01:41]}  Rxf8 {[%clk 0:01:58]} 26. Nc6 {[%clk 0:01:34]}  Bxh4 {[%clk 0:01:58]} 27. Ra7 {[%clk 0:01:12]}  Qe8 {[%clk 0:01:46]} 28. Ne5 {[%clk 0:00:57]}  g5 {[%clk 0:01:38]} 29. gxh4 {[%clk 0:00:49]}  gxf4 {[%clk 0:01:37]} 30. Kh2 {[%clk 0:00:45]}  Qd8 {[%clk 0:01:33]} 31. Rg1+ {[%clk 0:00:41]}  Nfg3 {[%clk 0:01:23]} 32. fxg3 {[%clk 0:00:41]}  fxg3+ {[%clk 0:01:21]} 33. Rxg3+ {[%clk 0:00:32]}  Kh8 {[%clk 0:01:14]} 34. Ng6+ {[%clk 0:00:32]}  Kg8 {[%clk 0:01:14]} 35. Nxf8+ {[%clk 0:00:30]}  Kxf8 {[%clk 0:01:12]} 36. Qf3+ {[%clk 0:00:29]}  Qf6 {[%clk 0:01:09]} 37. Qxf6+ {[%clk 0:00:27]}  Nxf6 {[%clk 0:01:09]} 38. Rf3 {[%clk 0:00:27]} 1-0


[Site "https://www.chess.com"]

[Event "Titled Tuesday Blitz December 7 2021"]
[White "Perrine, Dalton"]
[Black "Harshavardhan G B"]
[WhiteFideId "2048434"]
[BlackFideId "25059009"]
[WhiteElo "2445"]
[BlackElo "1825"]
[Result "1/2-1/2"]
[Round "06"]
[TimeControl "180+1"]
[Date "2021.12.07"]
[WhiteClock "0:00:06"]
[BlackClock "0:00:33"]

1. e4 {[%clk 0:03:00]}  e5 {[%clk 0:02:31]} 2. Nf3 {[%clk 0:03:00]}  Nc6 {[%clk 0:02:21]} 3. Bc4 {[%clk 0:02:59]}  Nf6 {[%clk 0:02:20]} 4. d3 {[%clk 0:02:59]}  Be7 {[%clk 0:02:19]} 5. O-O {[%clk 0:02:57]}  O-O {[%clk 0:02:19]} 6. Re1 {[%clk 0:02:51]}  d6 {[%clk 0:02:20]} 7. a4 {[%clk 0:02:49]}  Bg4 {[%clk 0:02:17]} 8. h3 {[%clk 0:02:40]}  Bh5 {[%clk 0:02:16]} 9. Nbd2 {[%clk 0:02:39]}  Kh8 {[%clk 0:02:10]} 10. Nf1 {[%clk 0:02:21]}  Nd4 {[%clk 0:02:06]} 11. g4 {[%clk 0:02:21]}  Nxf3+ {[%clk 0:01:40]} 12. Qxf3 {[%clk 0:02:22]}  Bg6 {[%clk 0:01:41]} 13. a5 {[%clk 0:01:28]}  Nd7 {[%clk 0:01:38]} 14. a6 {[%clk 0:01:25]}  b6 {[%clk 0:01:36]} 15. Bd5 {[%clk 0:01:20]}  Rb8 {[%clk 0:01:35]} 16. b4 {[%clk 0:01:10]}  Bg5 {[%clk 0:01:31]} 17. Bc6 {[%clk 0:00:56]}  Bxc1 {[%clk 0:01:29]} 18. Raxc1 {[%clk 0:00:57]}  Nf6 {[%clk 0:01:28]} 19. Ne3 {[%clk 0:00:43]}  Ng8 {[%clk 0:01:26]} 20. Nd5 {[%clk 0:00:33]}  Ne7 {[%clk 0:01:23]} 21. Nxe7 {[%clk 0:00:23]}  Qxe7 {[%clk 0:01:24]} 22. c4 {[%clk 0:00:21]}  h5 {[%clk 0:01:20]} 23. Kg2 {[%clk 0:00:17]}  Qg5 {[%clk 0:01:18]} 24. Qe3 {[%clk 0:00:15]}  Qxe3 {[%clk 0:01:16]} 25. Rxe3 {[%clk 0:00:16]}  f6 {[%clk 0:01:15]} 26. c5 {[%clk 0:00:10]}  bxc5 {[%clk 0:01:14]} 27. bxc5 {[%clk 0:00:11]}  Rb3 {[%clk 0:01:11]} 28. cxd6 {[%clk 0:00:08]}  cxd6 {[%clk 0:01:05]} 29. Bd5 {[%clk 0:00:07]}  Ra3 {[%clk 0:01:05]} 30. Rc6 {[%clk 0:00:07]}  Bf7 {[%clk 0:01:00]} 31. Bxf7 {[%clk 0:00:05]}  Rxf7 {[%clk 0:01:01]} 32. Rxd6 {[%clk 0:00:05]}  hxg4 {[%clk 0:00:59]} 33. hxg4 {[%clk 0:00:05]}  Rc7 {[%clk 0:01:00]} 34. d4 {[%clk 0:00:05]}  Ra4 {[%clk 0:00:55]} 35. dxe5 {[%clk 0:00:05]}  fxe5 {[%clk 0:00:56]} 36. Re6 {[%clk 0:00:04]}  Ra5 {[%clk 0:00:55]} 37. Rd3 {[%clk 0:00:03]}  Kg8 {[%clk 0:00:54]} 38. Rd5 {[%clk 0:00:01]}  Rxd5 {[%clk 0:00:52]} 39. exd5 {[%clk 0:00:02]}  Rd7 {[%clk 0:00:53]} 40. Rxe5 {[%clk 0:00:03]}  Rd6 {[%clk 0:00:53]} 41. f4 {[%clk 0:00:03]}  Rxa6 {[%clk 0:00:53]} 42. Re7 {[%clk 0:00:04]}  Rd6 {[%clk 0:00:51]} 43. Rxa7 {[%clk 0:00:03]}  Rxd5 {[%clk 0:00:52]} 44. Kf3 {[%clk 0:00:04]}  Rd4 {[%clk 0:00:52]} 45. g5 {[%clk 0:00:05]}  Kh7 {[%clk 0:00:48]} 46. Kg4 {[%clk 0:00:05]}  Kg6 {[%clk 0:00:48]} 47. Ra6+ {[%clk 0:00:05]}  Kf7 {[%clk 0:00:49]} 48. Kf5 {[%clk 0:00:05]}  Rd5+ {[%clk 0:00:48]} 49. Ke4 {[%clk 0:00:05]}  Rb5 {[%clk 0:00:49]} 50. Rd6 {[%clk 0:00:04]}  g6 {[%clk 0:00:47]} 51. Rf6+ {[%clk 0:00:04]}  Kg7 {[%clk 0:00:47]} 52. Re6 {[%clk 0:00:05]}  Rb4+ {[%clk 0:00:47]} 53. Kf3 {[%clk 0:00:05]}  Rb1 {[%clk 0:00:48]} 54. Re7+ {[%clk 0:00:05]}  Kf8 {[%clk 0:00:48]} 55. Rc7 {[%clk 0:00:06]}  Rb2 {[%clk 0:00:47]} 56. Ke4 {[%clk 0:00:06]}  Rb4+ {[%clk 0:00:44]} 57. Ke5 {[%clk 0:00:06]}  Kg8 {[%clk 0:00:45]} 58. Kf6 {[%clk 0:00:06]}  Rxf4+ {[%clk 0:00:44]} 59. Kxg6 {[%clk 0:00:06]}  Rf8 {[%clk 0:00:45]} 60. Rg7+ {[%clk 0:00:06]}  Kh8 {[%clk 0:00:45]} 61. Rf7 {[%clk 0:00:05]}  Ra8 {[%clk 0:00:45]} 62. Re7 {[%clk 0:00:03]}  Kg8 {[%clk 0:00:45]} 63. Rg7+ {[%clk 0:00:03]}  Kh8 {[%clk 0:00:44]} 64. Rf7 {[%clk 0:00:03]}  Kg8 {[%clk 0:00:44]} 65. Rf6 {[%clk 0:00:04]}  Ra7 {[%clk 0:00:43]} 66. Rb6 {[%clk 0:00:05]}  Ra8 {[%clk 0:00:44]} 67. Kf6 {[%clk 0:00:03]}  Rf8+ {[%clk 0:00:42]} 68. Kg6 {[%clk 0:00:04]}  Ra8 {[%clk 0:00:43]} 69. Re6 {[%clk 0:00:04]}  Rb8 {[%clk 0:00:42]} 70. Kf6 {[%clk 0:00:05]}  Rf8+ {[%clk 0:00:41]} 71. Ke5 {[%clk 0:00:05]}  Ra8 {[%clk 0:00:41]} 72. Kf5 {[%clk 0:00:05]}  Kf7 {[%clk 0:00:42]} 73. Rf6+ {[%clk 0:00:06]}  Kg7 {[%clk 0:00:42]} 74. Rc6 {[%clk 0:00:07]}  Ra5+ {[%clk 0:00:41]} 75. Kg4 {[%clk 0:00:07]}  Ra7 {[%clk 0:00:42]} 76. Kh5 {[%clk 0:00:08]}  Rb7 {[%clk 0:00:42]} 77. Rg6+ {[%clk 0:00:08]}  Kh7 {[%clk 0:00:42]} 78. Rh6+ {[%clk 0:00:09]}  Kg7 {[%clk 0:00:42]} 79. Rf6 {[%clk 0:00:10]}  Rb1 {[%clk 0:00:42]} 80. Rf4 {[%clk 0:00:09]}  Rh1+ {[%clk 0:00:41]} 81. Kg4 {[%clk 0:00:10]}  Rg1+ {[%clk 0:00:42]} 82. Kh4 {[%clk 0:00:11]}  Rh1+ {[%clk 0:00:42]} 83. Kg4 {[%clk 0:00:10]}  Rg1+ {[%clk 0:00:42]} 84. Kf5 {[%clk 0:00:11]}  Ra1 {[%clk 0:00:42]} 85. Re4 {[%clk 0:00:10]}  Ra7 {[%clk 0:00:42]} 86. Re5 {[%clk 0:00:10]}  Rb7 {[%clk 0:00:42]} 87. g6 {[%clk 0:00:09]}  Ra7 {[%clk 0:00:41]} 88. Kg5 {[%clk 0:00:10]}  Rb7 {[%clk 0:00:41]} 89. Rf5 {[%clk 0:00:10]}  Rc7 {[%clk 0:00:41]} 90. Rd5 {[%clk 0:00:10]}  Ra7 {[%clk 0:00:41]} 91. Rf5 {[%clk 0:00:10]}  Ra1 {[%clk 0:00:40]} 92. Rf7+ {[%clk 0:00:11]}  Kg8 {[%clk 0:00:40]} 93. Rc7 {[%clk 0:00:08]}  Rh1 {[%clk 0:00:39]} 94. Rc5 {[%clk 0:00:07]}  Kg7 {[%clk 0:00:39]} 95. Rc7+ {[%clk 0:00:07]}  Kg8 {[%clk 0:00:39]} 96. Kf6 {[%clk 0:00:06]}  Rf1+ {[%clk 0:00:39]} 97. Ke6 {[%clk 0:00:06]}  Rf2 {[%clk 0:00:38]} 98. Rf7 {[%clk 0:00:06]}  Rg2 {[%clk 0:00:36]} 99. Kf6 {[%clk 0:00:04]}  Rf2+ {[%clk 0:00:35]} 100. Kg5 {[%clk 0:00:05]}  Rg2+ {[%clk 0:00:32]} 101. Kf6 {[%clk 0:00:05]}  Rf2+ {[%clk 0:00:33]} 102. Kg5 {[%clk 0:00:05]}  Rxf7 {[%clk 0:00:33]} 103. gxf7+ {[%clk 0:00:06]}  Kxf7 {[%clk 0:00:33]} 1/2-1/2


[Site "https://www.chess.com"]

[Event "Titled Tuesday Blitz December 7 2021"]
[White "Punin, Andrii"]
[Black "Itkis, Boris"]
[WhiteFideId "14112639"]
[BlackFideId "1209167"]
[WhiteElo "2357"]
[BlackElo "2207"]
[Result "1-0"]
[Round "06"]
[TimeControl "180+1"]
[Date "2021.12.07"]
[WhiteClock "0:01:44"]
[BlackClock "0:00:33"]

1. e4 {[%clk 0:03:00]}  e5 {[%clk 0:02:58]} 2. Nf3 {[%clk 0:03:00]}  Nc6 {[%clk 0:02:57]} 3. Bb5 {[%clk 0:03:00]}  a6 {[%clk 0:02:57]} 4. Ba4 {[%clk 0:02:59]}  d6 {[%clk 0:02:58]} 5. O-O {[%clk 0:02:57]}  Bd7 {[%clk 0:02:58]} 6. d4 {[%clk 0:02:51]}  b5 {[%clk 0:02:56]} 7. Bb3 {[%clk 0:02:51]}  Nxd4 {[%clk 0:02:55]} 8. Nxd4 {[%clk 0:02:50]}  exd4 {[%clk 0:02:56]} 9. c3 {[%clk 0:02:35]}  dxc3 {[%clk 0:02:54]} 10. Qh5 {[%clk 0:02:34]}  g6 {[%clk 0:02:32]} 11. Qd5 {[%clk 0:02:33]}  Be6 {[%clk 0:02:33]} 12. Qc6+ {[%clk 0:02:33]}  Bd7 {[%clk 0:02:33]} 13. Qxc3 {[%clk 0:02:33]}  Nf6 {[%clk 0:02:19]} 14. e5 {[%clk 0:02:26]}  dxe5 {[%clk 0:02:10]} 15. Qxe5+ {[%clk 0:02:27]}  Be7 {[%clk 0:02:10]} 16. Bh6 {[%clk 0:02:17]}  Rg8 {[%clk 0:01:46]} 17. h3 {[%clk 0:02:12]}  Be6 {[%clk 0:01:04]} 18. Nc3 {[%clk 0:02:05]}  Qd6 {[%clk 0:01:00]} 19. Qe3 {[%clk 0:02:03]}  O-O-O {[%clk 0:00:55]} 20. Bf4 {[%clk 0:01:49]}  Qd4 {[%clk 0:00:35]} 21. Bxe6+ {[%clk 0:01:48]}  fxe6 {[%clk 0:00:32]} 22. Qxe6+ {[%clk 0:01:47]}  Qd7 {[%clk 0:00:33]} 23. Qxa6+ {[%clk 0:01:44]} 1-0


[Site "https://www.chess.com"]

[Event "Titled Tuesday Blitz December 7 2021"]
[White "Rangel, Daniel"]
[Black "Tasev, Dejan"]
[WhiteFideId "2124475"]
[BlackFideId "936618"]
[WhiteElo "2187"]
[BlackElo "2253"]
[Result "1-0"]
[Round "06"]
[TimeControl "180+1"]
[Date "2021.12.07"]
[WhiteClock "0:00:49"]
[BlackClock "0:00:06"]

1. c4 {[%clk 0:03:00]}  Nf6 {[%clk 0:02:59]} 2. g3 {[%clk 0:02:59]}  g6 {[%clk 0:02:59]} 3. Bg2 {[%clk 0:02:59]}  Bg7 {[%clk 0:02:59]} 4. Nc3 {[%clk 0:03:00]}  O-O {[%clk 0:02:59]} 5. e3 {[%clk 0:03:01]}  d6 {[%clk 0:02:59]} 6. Nge2 {[%clk 0:03:01]}  Nc6 {[%clk 0:02:58]} 7. O-O {[%clk 0:03:01]}  e5 {[%clk 0:02:58]} 8. Rb1 {[%clk 0:03:01]}  Be6 {[%clk 0:02:57]} 9. Nd5 {[%clk 0:02:58]}  Qd7 {[%clk 0:02:55]} 10. b4 {[%clk 0:02:55]}  h6 {[%clk 0:02:37]} 11. b5 {[%clk 0:02:52]}  Bxd5 {[%clk 0:02:30]} 12. Bxd5 {[%clk 0:02:38]}  Nd8 {[%clk 0:02:21]} 13. Bg2 {[%clk 0:02:38]}  Rb8 {[%clk 0:02:13]} 14. d4 {[%clk 0:02:31]}  exd4 {[%clk 0:02:08]} 15. Nxd4 {[%clk 0:02:23]}  Ne6 {[%clk 0:02:08]} 16. Nxe6 {[%clk 0:02:20]}  Qxe6 {[%clk 0:02:07]} 17. Qa4 {[%clk 0:02:17]}  Nd7 {[%clk 0:01:57]} 18. Ba3 {[%clk 0:02:07]}  Nb6 {[%clk 0:01:53]} 19. Qxa7 {[%clk 0:01:52]}  Ra8 {[%clk 0:01:49]} 20. Qxb7 {[%clk 0:01:52]}  Rxa3 {[%clk 0:01:48]} 21. Qxc7 {[%clk 0:01:52]}  Nxc4 {[%clk 0:01:26]} 22. b6 {[%clk 0:01:52]}  Nxb6 {[%clk 0:00:41]} 23. Rxb6 {[%clk 0:01:46]}  Rxa2 {[%clk 0:00:39]} 24. Rxd6 {[%clk 0:01:46]}  Qf5 {[%clk 0:00:37]} 25. Bd5 {[%clk 0:01:35]}  Rb2 {[%clk 0:00:25]} 26. Qd7 {[%clk 0:01:15]}  Qxd7 {[%clk 0:00:19]} 27. Rxd7 {[%clk 0:01:16]}  Bf6 {[%clk 0:00:16]} 28. Rc1 {[%clk 0:01:13]}  Rbb8 {[%clk 0:00:10]} 29. Rc6 {[%clk 0:00:54]}  Kg7 {[%clk 0:00:09]} 30. Rcc7 {[%clk 0:00:54]}  Rbd8 {[%clk 0:00:08]} 31. Rxf7+ {[%clk 0:00:51]}  Rxf7 {[%clk 0:00:06]} 32. Rxf7+ {[%clk 0:00:50]}  Kh8 {[%clk 0:00:06]} 33. Rxf6 {[%clk 0:00:49]} 1-0


[Site "https://www.chess.com"]